[Event "Titled Tuesday Blitz August 08 Early 2023"]
[White "vishwa_vijeta"]
[Black "Pumpkin_in_moonlight"]
[WhiteElo "2573"]
[BlackElo "2211"]
[Result "1-0"]
[Round "1"]
[TimeControl "180+1"]
[Date "2023.08.08"]
[WhiteClock "0:01:13"]
[BlackClock "0:00:00"]
[Board "222"]

1. e4 {[%clk 0:02:52]}  e5 {[%clk 0:02:58]} 2. Nf3 {[%clk 0:02:50]}  Nc6 {[%clk 0:02:58]} 3. d4 {[%clk 0:02:48]}  exd4 {[%clk 0:02:52]} 4. Bc4 {[%clk 0:02:42]}  Nf6 {[%clk 0:02:38]} 5. Ng5 {[%clk 0:02:41]}  Ne5 {[%clk 0:02:18]} 6. Qxd4 {[%clk 0:02:41]}  Nxc4 {[%clk 0:02:13]} 7. Qxc4 {[%clk 0:02:37]}  d5 {[%clk 0:01:57]} 8. exd5 {[%clk 0:02:38]}  Nxd5 {[%clk 0:01:55]} 9. O-O {[%clk 0:02:33]}  Be7 {[%clk 0:01:47]} 10. Nc3 {[%clk 0:02:05]}  c6 {[%clk 0:01:33]} 11. Nxd5 {[%clk 0:01:58]}  Qxd5 {[%clk 0:01:11]} 12. Qxd5 {[%clk 0:01:57]}  cxd5 {[%clk 0:01:11]} 13. Re1 {[%clk 0:01:57]}  h6 {[%clk 0:01:04]} 14. Nf3 {[%clk 0:01:55]}  Be6 {[%clk 0:01:03]} 15. Nd4 {[%clk 0:01:55]}  Kd7 {[%clk 0:01:01]} 16. c3 {[%clk 0:01:54]}  Bf6 {[%clk 0:00:51]} 17. Be3 {[%clk 0:01:54]}  Rhd8 {[%clk 0:00:45]} 18. Rad1 {[%clk 0:01:52]}  a6 {[%clk 0:00:36]} 19. c4 {[%clk 0:01:45]}  dxc4 {[%clk 0:00:19]} 20. Nxe6+ {[%clk 0:01:44]}  Kxe6 {[%clk 0:00:17]} 21. Bb6+ {[%clk 0:01:44]}  Kf5 {[%clk 0:00:15]} 22. Bxd8 {[%clk 0:01:43]}  Rxd8 {[%clk 0:00:15]} 23. Rxd8 {[%clk 0:01:44]}  Bxd8 {[%clk 0:00:15]} 24. Rd1 {[%clk 0:01:44]}  Bf6 {[%clk 0:00:14]} 25. Rc1 {[%clk 0:01:34]}  b5 {[%clk 0:00:14]} 26. b3 {[%clk 0:01:34]}  c3 {[%clk 0:00:13]} 27. Kf1 {[%clk 0:01:35]}  b4 {[%clk 0:00:13]} 28. Ke2 {[%clk 0:01:35]}  Bg5 {[%clk 0:00:12]} 29. Rc2 {[%clk 0:01:29]}  Ke4 {[%clk 0:00:11]} 30. a3 {[%clk 0:01:22]}  a5 {[%clk 0:00:11]} 31. axb4 {[%clk 0:01:22]}  axb4 {[%clk 0:00:12]} 32. f3+ {[%clk 0:01:16]}  Kd4 {[%clk 0:00:11]} 33. Ra2 {[%clk 0:01:16]}  Bd2 {[%clk 0:00:09]} 34. Ra4 {[%clk 0:01:13]}  Kc5 {[%clk 0:00:00]} 35. Kd3 {[%clk 0:01:13]} 1-0


[Site "https://www.chess.com"]

[Event "Titled Tuesday Blitz August 08 Early 2023"]
[White "Kiseljova, Marya"]
[Black "Principe, Alexander"]
[WhiteFideId "4155009"]
[BlackFideId "3804542"]
[WhiteElo "2210"]
[BlackElo "2571"]
[Result "1/2-1/2"]
[Round "1"]
[TimeControl "180+1"]
[Date "2023.08.08"]
[WhiteClock "0:00:10"]
[BlackClock "0:00:59"]
[Board "223"]

1. d4 {[%clk 0:02:59]}  Nf6 {[%clk 0:02:59]} 2. c4 {[%clk 0:02:59]}  g6 {[%clk 0:03:00]} 3. Nc3 {[%clk 0:02:59]}  Bg7 {[%clk 0:03:00]} 4. e4 {[%clk 0:02:59]}  O-O {[%clk 0:03:01]} 5. Be2 {[%clk 0:02:58]}  d6 {[%clk 0:02:59]} 6. Bg5 {[%clk 0:02:58]}  h6 {[%clk 0:03:00]} 7. Be3 {[%clk 0:02:54]}  c5 {[%clk 0:02:58]} 8. d5 {[%clk 0:02:53]}  e6 {[%clk 0:02:57]} 9. Qd2 {[%clk 0:02:45]}  exd5 {[%clk 0:02:54]} 10. exd5 {[%clk 0:02:46]}  Kh7 {[%clk 0:02:54]} 11. h3 {[%clk 0:02:44]}  Nbd7 {[%clk 0:02:48]} 12. Nf3 {[%clk 0:02:44]}  a6 {[%clk 0:02:44]} 13. a4 {[%clk 0:02:43]}  Qa5 {[%clk 0:02:43]} 14. O-O {[%clk 0:02:42]}  Re8 {[%clk 0:02:42]} 15. Rfe1 {[%clk 0:02:41]}  Nf8 {[%clk 0:02:42]} 16. Bf4 {[%clk 0:02:40]}  Qc7 {[%clk 0:02:41]} 17. Bd3 {[%clk 0:02:31]}  Bd7 {[%clk 0:02:40]} 18. Rxe8 {[%clk 0:02:27]}  Rxe8 {[%clk 0:02:40]} 19. Re1 {[%clk 0:02:27]}  Rxe1+ {[%clk 0:02:40]} 20. Qxe1 {[%clk 0:02:26]}  Bc8 {[%clk 0:02:37]} 21. Nd2 {[%clk 0:02:10]}  Nh5 {[%clk 0:02:25]} 22. Bh2 {[%clk 0:02:09]}  f5 {[%clk 0:02:21]} 23. Qe8 {[%clk 0:01:50]}  Nf6 {[%clk 0:02:18]} 24. Qe2 {[%clk 0:01:49]}  Qd7 {[%clk 0:02:04]} 25. Nf3 {[%clk 0:01:46]}  Ne8 {[%clk 0:02:02]} 26. Bc2 {[%clk 0:01:29]}  Bf6 {[%clk 0:02:02]} 27. Bf4 {[%clk 0:01:23]}  Qe7 {[%clk 0:02:00]} 28. Qxe7+ {[%clk 0:01:22]}  Bxe7 {[%clk 0:02:01]} 29. Kf1 {[%clk 0:01:18]}  Nd7 {[%clk 0:02:01]} 30. g4 {[%clk 0:01:16]}  fxg4 {[%clk 0:01:58]} 31. hxg4 {[%clk 0:01:17]}  Kg7 {[%clk 0:01:56]} 32. Ke2 {[%clk 0:01:13]}  g5 {[%clk 0:01:54]} 33. Bg3 {[%clk 0:01:11]}  Ndf6 {[%clk 0:01:54]} 34. Bf5 {[%clk 0:01:02]}  Bxf5 {[%clk 0:01:54]} 35. gxf5 {[%clk 0:01:03]}  Kf7 {[%clk 0:01:55]} 36. Ke3 {[%clk 0:00:58]}  Ng7 {[%clk 0:01:54]} 37. Kd3 {[%clk 0:00:37]}  Nxf5 {[%clk 0:01:48]} 38. Bh2 {[%clk 0:00:38]}  g4 {[%clk 0:01:47]} 39. Nd2 {[%clk 0:00:37]}  h5 {[%clk 0:01:47]} 40. Nde4 {[%clk 0:00:37]}  Nh7 {[%clk 0:01:44]} 41. Ng3 {[%clk 0:00:33]}  Nxg3 {[%clk 0:01:45]} 42. Bxg3 {[%clk 0:00:34]}  h4 {[%clk 0:01:45]} 43. Bf4 {[%clk 0:00:34]}  Nf6 {[%clk 0:01:41]} 44. Ne4 {[%clk 0:00:33]}  Nh5 {[%clk 0:01:28]} 45. Bh2 {[%clk 0:00:27]}  Kg6 {[%clk 0:01:28]} 46. Ke3 {[%clk 0:00:21]}  Kf5 {[%clk 0:01:25]} 47. Nxd6+ {[%clk 0:00:21]}  Bxd6 {[%clk 0:01:25]} 48. Bxd6 {[%clk 0:00:21]}  h3 {[%clk 0:01:14]} 49. Bh2 {[%clk 0:00:20]}  Nf6 {[%clk 0:01:15]} 50. d6 {[%clk 0:00:19]}  Nd7 {[%clk 0:01:14]} 51. Kd3 {[%clk 0:00:17]}  b6 {[%clk 0:01:12]} 52. Ke3 {[%clk 0:00:17]}  Nf6 {[%clk 0:01:11]} 53. b3 {[%clk 0:00:16]}  a5 {[%clk 0:01:11]} 54. Kd3 {[%clk 0:00:16]}  Ke6 {[%clk 0:01:09]} 55. Ke3 {[%clk 0:00:15]}  Ne8 {[%clk 0:01:08]} 56. Kf4 {[%clk 0:00:15]}  Nxd6 {[%clk 0:01:08]} 57. Kxg4 {[%clk 0:00:15]}  Ne4 {[%clk 0:01:09]} 58. f3 {[%clk 0:00:13]}  Nd2 {[%clk 0:01:08]} 59. Bc7 {[%clk 0:00:12]}  Nxb3 {[%clk 0:01:07]} 60. Kxh3 {[%clk 0:00:12]}  Kd7 {[%clk 0:01:05]} 61. Bxb6 {[%clk 0:00:12]}  Kc6 {[%clk 0:01:05]} 62. Bd8 {[%clk 0:00:11]}  Nd2 {[%clk 0:01:05]} 63. Kg4 {[%clk 0:00:10]}  Nxc4 {[%clk 0:01:06]} 64. f4 {[%clk 0:00:11]}  Kd7 {[%clk 0:01:03]} 65. Bf6 {[%clk 0:00:10]}  Nb6 {[%clk 0:01:02]} 66. Bc3 {[%clk 0:00:10]}  Nxa4 {[%clk 0:01:03]} 67. Bxa5 {[%clk 0:00:10]}  Ke6 {[%clk 0:01:04]} 68. Be1 {[%clk 0:00:10]}  Nb2 {[%clk 0:01:02]} 69. f5+ {[%clk 0:00:10]}  Kf7 {[%clk 0:01:01]} 70. Bc3 {[%clk 0:00:11]}  Nd1 {[%clk 0:01:01]} 71. Ba1 {[%clk 0:00:10]}  Ne3+ {[%clk 0:01:00]} 72. Kf4 {[%clk 0:00:10]}  Nc2 {[%clk 0:01:01]} 73. Bc3 {[%clk 0:00:09]}  Na3 {[%clk 0:01:01]} 74. Ke5 {[%clk 0:00:09]}  Nb5 {[%clk 0:01:01]} 75. Kd5 {[%clk 0:00:09]}  Nxc3+ {[%clk 0:00:59]} 76. Kxc5 {[%clk 0:00:10]} 1/2-1/2


[Site "https://www.chess.com"]

[Event "Titled Tuesday Blitz August 08 Early 2023"]
[White "Luxama, Jacques Muller"]
[Black "Parpiev, Isaak"]
[WhiteFideId "11900113"]
[BlackFideId "34281576"]
[WhiteElo "2199"]
[BlackElo "2568"]
[Result "1-0"]
[Round "1"]
[TimeControl "180+1"]
[Date "2023.08.08"]
[WhiteClock "0:00:08"]
[BlackClock "0:00:00"]
[Board "229"]

1. e4 {[%clk 0:02:59]}  c6 {[%clk 0:02:57]} 2. d4 {[%clk 0:02:58]}  d5 {[%clk 0:02:56]} 3. e5 {[%clk 0:02:58]}  Bf5 {[%clk 0:02:55]} 4. g4 {[%clk 0:02:59]}  Be4 {[%clk 0:02:55]} 5. f3 {[%clk 0:02:59]}  Bg6 {[%clk 0:02:55]} 6. e6 {[%clk 0:03:00]}  fxe6 {[%clk 0:02:50]} 7. Nc3 {[%clk 0:02:58]}  Qd6 {[%clk 0:02:37]} 8. f4 {[%clk 0:02:56]}  h5 {[%clk 0:02:30]} 9. g5 {[%clk 0:02:44]}  Nd7 {[%clk 0:02:22]} 10. Nf3 {[%clk 0:02:43]}  Bf5 {[%clk 0:02:20]} 11. Bd3 {[%clk 0:02:39]}  g6 {[%clk 0:02:18]} 12. Nh4 {[%clk 0:02:30]}  Kf7 {[%clk 0:01:57]} 13. O-O {[%clk 0:02:23]}  Bg7 {[%clk 0:01:55]} 14. Be3 {[%clk 0:02:12]}  b5 {[%clk 0:01:39]} 15. Ne2 {[%clk 0:02:12]}  a6 {[%clk 0:01:33]} 16. Ng3 {[%clk 0:02:11]}  c5 {[%clk 0:01:17]} 17. c3 {[%clk 0:02:08]}  b4 {[%clk 0:01:08]} 18. Rc1 {[%clk 0:02:00]}  c4 {[%clk 0:00:47]} 19. Bxf5 {[%clk 0:01:47]}  exf5 {[%clk 0:00:44]} 20. b3 {[%clk 0:01:41]}  e6 {[%clk 0:00:32]} 21. Nf3 {[%clk 0:01:35]}  h4 {[%clk 0:00:29]} 22. Ne2 {[%clk 0:01:34]}  Ne7 {[%clk 0:00:29]} 23. Ne5+ {[%clk 0:01:32]}  Nxe5 {[%clk 0:00:07]} 24. dxe5 {[%clk 0:01:23]}  Qc6 {[%clk 0:00:07]} 25. cxb4 {[%clk 0:01:22]}  Qb7 {[%clk 0:00:07]} 26. Qd2 {[%clk 0:01:16]}  cxb3 {[%clk 0:00:05]} 27. axb3 {[%clk 0:01:14]}  d4 {[%clk 0:00:05]} 28. Nxd4 {[%clk 0:01:13]}  h3 {[%clk 0:00:06]} 29. Rf2 {[%clk 0:01:00]}  Rac8 {[%clk 0:00:05]} 30. Rc4 {[%clk 0:00:59]}  Nd5 {[%clk 0:00:05]} 31. Nc2 {[%clk 0:00:42]}  Rh4 {[%clk 0:00:04]} 32. Bc5 {[%clk 0:00:33]}  Rg4+ {[%clk 0:00:04]} 33. Kf1 {[%clk 0:00:30]}  Ne7 {[%clk 0:00:02]} 34. Ne3 {[%clk 0:00:24]}  Qh1+ {[%clk 0:00:01]} 35. Ke2 {[%clk 0:00:23]}  Rg1 {[%clk 0:00:01]} 36. Bxe7 {[%clk 0:00:20]}  Rxc4 {[%clk 0:00:02]} 37. bxc4 {[%clk 0:00:20]}  Kxe7 {[%clk 0:00:03]} 38. Qd6+ {[%clk 0:00:20]}  Kf7 {[%clk 0:00:03]} 39. Qd7+ {[%clk 0:00:20]}  Kg8 {[%clk 0:00:04]} 40. Qxe6+ {[%clk 0:00:19]}  Kh7 {[%clk 0:00:05]} 41. Qd5 {[%clk 0:00:13]}  Re1+ {[%clk 0:00:03]} 42. Kd2 {[%clk 0:00:13]}  Qg1 {[%clk 0:00:04]} 43. Re2 {[%clk 0:00:12]}  Rxe2+ {[%clk 0:00:04]} 44. Kxe2 {[%clk 0:00:13]}  Qxh2+ {[%clk 0:00:05]} 45. Kd3 {[%clk 0:00:13]}  Qxf4 {[%clk 0:00:05]} 46. e6 {[%clk 0:00:13]}  h2 {[%clk 0:00:04]} 47. e7 {[%clk 0:00:13]}  Qe4+ {[%clk 0:00:03]} 48. Qxe4 {[%clk 0:00:12]}  fxe4+ {[%clk 0:00:04]} 49. Kd2 {[%clk 0:00:12]}  h1=Q {[%clk 0:00:03]} 50. e8=Q {[%clk 0:00:12]}  Qh2+ {[%clk 0:00:02]} 51. Kc1 {[%clk 0:00:12]}  Qg1+ {[%clk 0:00:03]} 52. Nd1 {[%clk 0:00:12]}  Qd4 {[%clk 0:00:03]} 53. Qe6 {[%clk 0:00:11]}  a5 {[%clk 0:00:02]} 54. bxa5 {[%clk 0:00:10]}  Qa1+ {[%clk 0:00:03]} 55. Kd2 {[%clk 0:00:10]}  Qxa5+ {[%clk 0:00:03]} 56. Ke2 {[%clk 0:00:10]}  Qa2+ {[%clk 0:00:02]} 57. Kf1 {[%clk 0:00:10]}  Qd2 {[%clk 0:00:02]} 58. Nf2 {[%clk 0:00:08]}  e3 {[%clk 0:00:00]} 59. Ng4 {[%clk 0:00:08]} 1-0


[Site "https://www.chess.com"]

[Event "Titled Tuesday Blitz August 08 Early 2023"]
[White "Souleidis, Georgios"]
[Black "EvgenyBurmakin"]
[WhiteFideId "4206827"]
[WhiteElo "2567"]
[BlackElo "2196"]
[Result "0-1"]
[Round "1"]
[TimeControl "180+1"]
[Date "2023.08.08"]
[WhiteClock "0:00:00"]
[BlackClock "0:00:15"]
[Board "230"]

1. e4 {[%clk 0:02:52]}  c5 {[%clk 0:02:59]} 2. Nf3 {[%clk 0:02:52]}  d6 {[%clk 0:02:58]} 3. Bc4 {[%clk 0:02:50]}  Nc6 {[%clk 0:02:56]} 4. O-O {[%clk 0:02:49]}  e6 {[%clk 0:02:54]} 5. Re1 {[%clk 0:02:48]}  a6 {[%clk 0:02:51]} 6. Bf1 {[%clk 0:02:47]}  Nf6 {[%clk 0:02:50]} 7. c3 {[%clk 0:02:47]}  Be7 {[%clk 0:02:47]} 8. d4 {[%clk 0:02:47]}  cxd4 {[%clk 0:02:45]} 9. cxd4 {[%clk 0:02:48]}  O-O {[%clk 0:02:44]} 10. Nc3 {[%clk 0:02:48]}  Bd7 {[%clk 0:02:35]} 11. h3 {[%clk 0:02:48]}  Rc8 {[%clk 0:02:31]} 12. Bg5 {[%clk 0:02:34]}  h6 {[%clk 0:02:25]} 13. Be3 {[%clk 0:02:30]}  Qc7 {[%clk 0:02:10]} 14. Rc1 {[%clk 0:02:27]}  Qb8 {[%clk 0:02:09]} 15. d5 {[%clk 0:02:16]}  Ne5 {[%clk 0:01:54]} 16. Nd4 {[%clk 0:01:57]}  Rfe8 {[%clk 0:01:43]} 17. dxe6 {[%clk 0:01:56]}  fxe6 {[%clk 0:01:43]} 18. b3 {[%clk 0:01:52]}  b5 {[%clk 0:01:39]} 19. a3 {[%clk 0:01:37]}  Rxc3 {[%clk 0:01:29]} 20. Rxc3 {[%clk 0:01:36]}  Nxe4 {[%clk 0:01:29]} 21. Rc1 {[%clk 0:01:34]}  d5 {[%clk 0:01:22]} 22. b4 {[%clk 0:01:31]}  Nc4 {[%clk 0:01:16]} 23. Bxc4 {[%clk 0:01:26]}  bxc4 {[%clk 0:01:16]} 24. f3 {[%clk 0:01:18]}  Nf6 {[%clk 0:01:02]} 25. Bf2 {[%clk 0:01:14]}  Bd6 {[%clk 0:00:59]} 26. Rb1 {[%clk 0:00:44]}  e5 {[%clk 0:00:57]} 27. Ne2 {[%clk 0:00:37]}  d4 {[%clk 0:00:45]} 28. Ng3 {[%clk 0:00:31]}  c3 {[%clk 0:00:43]} 29. a4 {[%clk 0:00:22]}  Qc7 {[%clk 0:00:40]} 30. Qc2 {[%clk 0:00:11]}  Nd5 {[%clk 0:00:30]} 31. b5 {[%clk 0:00:10]}  axb5 {[%clk 0:00:29]} 32. axb5 {[%clk 0:00:11]}  Nb4 {[%clk 0:00:25]} 33. Rxb4 {[%clk 0:00:11]}  Bxb4 {[%clk 0:00:24]} 34. Qb3+ {[%clk 0:00:12]}  Kh8 {[%clk 0:00:20]} 35. Qxb4 {[%clk 0:00:12]}  d3 {[%clk 0:00:18]} 36. b6 {[%clk 0:00:10]}  Qc6 {[%clk 0:00:15]} 37. b7 {[%clk 0:00:00]}  Rb8 {[%clk 0:00:15]} 0-1


[Site "https://www.chess.com"]

[Event "Titled Tuesday Blitz August 08 Early 2023"]
[White "LionKing2367890"]
[Black "Borgaonkar Akshay"]
[BlackFideId "25639110"]
[WhiteElo "2194"]
[BlackElo "2567"]
[Result "0-1"]
[Round "1"]
[TimeControl "180+1"]
[Date "2023.08.08"]
[WhiteClock "0:01:42"]
[BlackClock "0:02:10"]
[Board "231"]

1. e4 {[%clk 0:02:59]}  c5 {[%clk 0:02:59]} 2. Nf3 {[%clk 0:02:58]}  e6 {[%clk 0:02:59]} 3. d4 {[%clk 0:02:58]}  cxd4 {[%clk 0:03:00]} 4. Nxd4 {[%clk 0:02:59]}  Nc6 {[%clk 0:03:01]} 5. c4 {[%clk 0:02:57]}  Qc7 {[%clk 0:02:59]} 6. Nc3 {[%clk 0:02:55]}  Nf6 {[%clk 0:02:59]} 7. Be3 {[%clk 0:02:54]}  Bb4 {[%clk 0:02:56]} 8. f3 {[%clk 0:02:47]}  a6 {[%clk 0:02:54]} 9. Be2 {[%clk 0:02:42]}  Ne5 {[%clk 0:02:52]} 10. Qb3 {[%clk 0:02:37]}  Bc5 {[%clk 0:02:51]} 11. O-O {[%clk 0:02:28]}  O-O {[%clk 0:02:50]} 12. Kh1 {[%clk 0:02:16]}  d6 {[%clk 0:02:44]} 13. Qd1 {[%clk 0:02:13]}  Bd7 {[%clk 0:02:28]} 14. Rc1 {[%clk 0:02:12]}  Rac8 {[%clk 0:02:27]} 15. f4 {[%clk 0:02:05]}  Nc6 {[%clk 0:02:27]} 16. Qd2 {[%clk 0:01:55]}  Bb4 {[%clk 0:02:18]} 17. Bf3 {[%clk 0:01:52]}  Nxd4 {[%clk 0:02:16]} 18. Bxd4 {[%clk 0:01:47]}  Qxc4 {[%clk 0:02:15]} 19. a3 {[%clk 0:01:46]}  Bxc3 {[%clk 0:02:10]} 20. Rxc3 {[%clk 0:01:42]}  Qxf1+ {[%clk 0:02:10]} 0-1


[Site "https://www.chess.com"]

[Event "Titled Tuesday Blitz August 08 Early 2023"]
[White "Lisjak, Zlatko"]
[Black "Pratama, Constantius Leonardo"]
[WhiteFideId "14502186"]
[BlackFideId "7104677"]
[WhiteElo "2174"]
[BlackElo "2567"]
[Result "1-0"]
[Round "1"]
[TimeControl "180+1"]
[Date "2023.08.08"]
[WhiteClock "0:00:45"]
[BlackClock "0:00:02"]
[Board "233"]

1. d4 {[%clk 0:03:00]}  Nf6 {[%clk 0:02:58]} 2. Nc3 {[%clk 0:02:59]}  e6 {[%clk 0:02:59]} 3. Bf4 {[%clk 0:02:59]}  d5 {[%clk 0:02:57]} 4. e3 {[%clk 0:02:57]}  Bd6 {[%clk 0:02:56]} 5. Qd2 {[%clk 0:02:54]}  O-O {[%clk 0:02:49]} 6. O-O-O {[%clk 0:02:53]}  Bxf4 {[%clk 0:02:49]} 7. exf4 {[%clk 0:02:53]}  b6 {[%clk 0:02:46]} 8. Nf3 {[%clk 0:02:52]}  Ba6 {[%clk 0:02:44]} 9. Ne5 {[%clk 0:02:49]}  Nfd7 {[%clk 0:02:38]} 10. g4 {[%clk 0:02:40]}  Nxe5 {[%clk 0:02:33]} 11. fxe5 {[%clk 0:02:38]}  Bxf1 {[%clk 0:02:33]} 12. Rdxf1 {[%clk 0:02:35]}  f6 {[%clk 0:02:26]} 13. f4 {[%clk 0:02:34]}  fxe5 {[%clk 0:02:24]} 14. dxe5 {[%clk 0:02:34]}  Nd7 {[%clk 0:02:14]} 15. h4 {[%clk 0:02:23]}  Qe7 {[%clk 0:01:39]} 16. h5 {[%clk 0:02:19]}  c6 {[%clk 0:01:11]} 17. h6 {[%clk 0:02:16]}  g6 {[%clk 0:01:10]} 18. a3 {[%clk 0:01:47]}  b5 {[%clk 0:01:09]} 19. Ne2 {[%clk 0:01:44]}  c5 {[%clk 0:01:06]} 20. Ng3 {[%clk 0:01:41]}  a5 {[%clk 0:01:04]} 21. f5 {[%clk 0:01:39]}  Nxe5 {[%clk 0:00:48]} 22. Qf4 {[%clk 0:01:15]}  exf5 {[%clk 0:00:44]} 23. gxf5 {[%clk 0:01:13]}  Qf6 {[%clk 0:00:21]} 24. Qd2 {[%clk 0:01:11]}  d4 {[%clk 0:00:19]} 25. Ne4 {[%clk 0:01:09]}  Qc6 {[%clk 0:00:17]} 26. Qf4 {[%clk 0:01:04]}  Rae8 {[%clk 0:00:16]} 27. Qh4 {[%clk 0:00:58]}  d3 {[%clk 0:00:11]} 28. fxg6 {[%clk 0:00:54]}  Nxg6 {[%clk 0:00:12]} 29. Nf6+ {[%clk 0:00:53]}  Rxf6 {[%clk 0:00:11]} 30. Qxf6 {[%clk 0:00:52]}  Qxf6 {[%clk 0:00:10]} 31. Rxf6 {[%clk 0:00:53]}  c4 {[%clk 0:00:08]} 32. cxd3 {[%clk 0:00:52]}  cxd3 {[%clk 0:00:08]} 33. Kd2 {[%clk 0:00:53]}  Re2+ {[%clk 0:00:07]} 34. Kxd3 {[%clk 0:00:52]}  Rxb2 {[%clk 0:00:08]} 35. Re1 {[%clk 0:00:50]}  Rb3+ {[%clk 0:00:03]} 36. Kc2 {[%clk 0:00:48]}  Rf3 {[%clk 0:00:02]} 37. Re8+ {[%clk 0:00:46]}  Nf8 {[%clk 0:00:02]} 38. Rexf8# {[%clk 0:00:45]} 1-0


[Site "https://www.chess.com"]

[Event "Titled Tuesday Blitz August 08 Early 2023"]
[White "Nozdrachev, Leonid"]
[Black "Araujo Filho, Luiz Antonio Coel"]
[WhiteFideId "24113433"]
[BlackFideId "2130661"]
[WhiteElo "2566"]
[BlackElo "2173"]
[Result "1-0"]
[Round "1"]
[TimeControl "180+1"]
[Date "2023.08.08"]
[WhiteClock "0:00:35"]
[BlackClock "0:00:02"]
[Board "234"]

1. e4 {[%clk 0:03:00]}  c6 {[%clk 0:02:59]} 2. Nc3 {[%clk 0:02:59]}  d5 {[%clk 0:02:58]} 3. Nf3 {[%clk 0:03:00]}  dxe4 {[%clk 0:02:58]} 4. Nxe4 {[%clk 0:03:01]}  Nf6 {[%clk 0:02:59]} 5. Qe2 {[%clk 0:03:01]}  Nxe4 {[%clk 0:02:57]} 6. Qxe4 {[%clk 0:03:02]}  Be6 {[%clk 0:02:54]} 7. d4 {[%clk 0:03:00]}  g6 {[%clk 0:02:45]} 8. Qe5 {[%clk 0:02:58]}  Rg8 {[%clk 0:02:39]} 9. Ng5 {[%clk 0:02:52]}  Bf5 {[%clk 0:02:26]} 10. Nxh7 {[%clk 0:02:49]}  Bg7 {[%clk 0:02:21]} 11. Qe2 {[%clk 0:02:43]}  Qxd4 {[%clk 0:02:10]} 12. c3 {[%clk 0:02:40]}  Qe4 {[%clk 0:01:49]} 13. Bg5 {[%clk 0:02:36]}  Nd7 {[%clk 0:01:16]} 14. Be3 {[%clk 0:02:25]}  Ne5 {[%clk 0:00:39]} 15. Ng5 {[%clk 0:01:59]}  Qc2 {[%clk 0:00:35]} 16. Qxc2 {[%clk 0:01:51]}  Bxc2 {[%clk 0:00:36]} 17. Be2 {[%clk 0:01:44]}  Bd3 {[%clk 0:00:25]} 18. Bd4 {[%clk 0:01:37]}  Bxe2 {[%clk 0:00:25]} 19. Kxe2 {[%clk 0:01:38]}  Nc4 {[%clk 0:00:17]} 20. Bxg7 {[%clk 0:01:31]}  Rxg7 {[%clk 0:00:18]} 21. h4 {[%clk 0:01:31]}  O-O-O {[%clk 0:00:14]} 22. b3 {[%clk 0:01:29]}  Ne5 {[%clk 0:00:04]} 23. Rad1 {[%clk 0:01:27]}  Rxd1 {[%clk 0:00:03]} 24. Rxd1 {[%clk 0:01:28]}  e6 {[%clk 0:00:02]} 25. a4 {[%clk 0:01:19]}  Nd7 {[%clk 0:00:02]} 26. b4 {[%clk 0:01:15]}  Nf6 {[%clk 0:00:02]} 27. Ke3 {[%clk 0:01:13]}  Nd5+ {[%clk 0:00:02]} 28. Kd4 {[%clk 0:01:11]}  Nf6 {[%clk 0:00:03]} 29. f3 {[%clk 0:01:08]}  Nh7 {[%clk 0:00:03]} 30. Ke5 {[%clk 0:01:05]}  Nxg5 {[%clk 0:00:03]} 31. hxg5 {[%clk 0:01:06]}  Rh7 {[%clk 0:00:03]} 32. Kf6 {[%clk 0:01:04]}  Kc7 {[%clk 0:00:03]} 33. g4 {[%clk 0:01:02]}  b6 {[%clk 0:00:02]} 34. c4 {[%clk 0:01:01]}  a6 {[%clk 0:00:02]} 35. f4 {[%clk 0:01:00]}  b5 {[%clk 0:00:02]} 36. cxb5 {[%clk 0:00:57]}  axb5 {[%clk 0:00:03]} 37. a5 {[%clk 0:00:58]}  c5 {[%clk 0:00:01]} 38. bxc5 {[%clk 0:00:54]}  Kc6 {[%clk 0:00:02]} 39. a6 {[%clk 0:00:52]}  Kxc5 {[%clk 0:00:02]} 40. a7 {[%clk 0:00:46]}  Rh8 {[%clk 0:00:03]} 41. Kxf7 {[%clk 0:00:46]}  Ra8 {[%clk 0:00:03]} 42. Rd7 {[%clk 0:00:45]}  b4 {[%clk 0:00:03]} 43. Kxg6 {[%clk 0:00:43]}  b3 {[%clk 0:00:03]} 44. Rb7 {[%clk 0:00:43]}  Kc4 {[%clk 0:00:04]} 45. f5 {[%clk 0:00:42]}  exf5 {[%clk 0:00:04]} 46. gxf5 {[%clk 0:00:43]}  Kc3 {[%clk 0:00:04]} 47. f6 {[%clk 0:00:42]}  b2 {[%clk 0:00:04]} 48. f7 {[%clk 0:00:39]}  Kc2 {[%clk 0:00:04]} 49. Rxb2+ {[%clk 0:00:36]}  Kxb2 {[%clk 0:00:04]} 50. Kf6 {[%clk 0:00:37]}  Kc3 {[%clk 0:00:02]} 51. g6 {[%clk 0:00:36]}  Kd4 {[%clk 0:00:03]} 52. g7 {[%clk 0:00:37]}  Kd5 {[%clk 0:00:03]} 53. g8=Q {[%clk 0:00:36]}  Rxg8 {[%clk 0:00:02]} 54. fxg8=Q+ {[%clk 0:00:35]} 1-0


[Site "https://www.chess.com"]